bitfinex/quotes_SOLUSD_20241110
["timestamp","ask_amount","ask_price","bid_price","bid_amount"]
[1731207108779,31.0833316,204.3,204.29,126.26842289]
[1731207108979,31.0833316,204.3,204.29,164.10404779]
[1731207109294,31.0833316,204.3,204.29,134.15951141]
[1731207110488,31.0833316,204.3,204.29,149.94377009]
[1731207110991,31.0833316,204.3,204.29,156.41007009]
[1731207111579,23.1366,204.5,204.33,70.0]
[1731207111780,15.78425868,204.49,204.41,15.78425868]
[1731207111990,15.78425868,204.45,204.34,19.94714651]
[1731207112196,15.78425868,204.45,204.38,15.78425868]
[1731207112396,15.78425868,204.46,204.39,15.78425868]
[1731207112796,23.1366,204.5,204.4,15.78425868]
[1731207112797,15.78425868,204.47,204.4,15.78425868]
[1731207115198,23.1366,204.5,204.4,15.78425868]
[1731207115199,15.78425868,204.48,204.4,15.78425868]
[1731207115378,15.28425868,204.48,204.4,15.78425868]
[1731207115996,15.78425868,204.46,204.39,23.21217782]
[1731207116211,15.78425868,204.43,204.33,7.42791914]
[1731207116408,15.78425868,204.42,204.34,15.78425868]
[1731207117192,5.08495425,204.45,204.37,15.78425868]
[1731207117392,15.78425868,204.45,204.37,15.78425868]
[1731207117792,15.78425868,204.45,204.37,23.21217782]
[1731207118294,15.78425868,204.43,204.36,20.68825868]
[1731207118602,15.78425868,204.43,204.36,4.904]
[1731207119507,15.78425868,204.43,204.36,20.68825868]
[1731207121184,15.78425868,204.43,204.36,4.904]
[1731207121404,0.1,204.45,204.35,15.78425868]
[1731207121405,15.78425868,204.42,204.35,15.78425868]
[1731207121698,15.78425868,204.36,204.27,15.78425868]
[1731207121886,0.1,204.38,204.27,15.78425868]
[1731207121887,15.78425868,204.34,204.27,15.78425868]
[1731207122282,15.78425868,204.35,204.27,15.78425868]
[1731207122483,15.78425868,204.35,204.28,15.78425868]
[1731207123401,15.78425868,204.34,204.27,15.78425868]
[1731207124605,15.78425868,204.34,204.26,20.68825868]
[1731207124780,37.89245868,204.33,204.25,15.78425868]
[1731207124981,37.89245868,204.33,204.26,15.78425868]
[1731207125182,22.1082,204.33,204.26,15.78425868]
[1731207125679,37.89245868,204.33,204.26,15.78425868]
[1731207125881,22.1082,204.33,204.3,15.78425868]
[1731207126084,22.1082,204.33,204.29,15.78425868]
[1731207126289,22.1082,204.39,204.32,15.78425868]
[1731207126491,22.1082,204.39,204.34,15.78425868]
[1731207126808,22.1082,204.39,204.33,15.78425868]
[1731207127307,0.35,204.5,204.38,15.78425868]
[1731207127511,0.35,204.5,204.4,15.78425868]
[1731207127808,15.78425868,204.49,204.4,15.78425868]
[1731207128685,15.78425868,204.48,204.4,15.78425868]
[1731207129287,0.35,204.5,204.38,25.24337895]
[1731207129288,25.24337895,204.46,204.38,25.24337895]
[1731207129693,0.25,204.5,204.45,25.24337895]
[1731207129902,0.25,204.5,204.49,25.24337895]
[1731207130207,0.25,204.5,204.47,25.24337895]
[1731207131209,0.25,204.5,204.49,25.24337895]
[1731207132895,0.25,204.5,204.48,25.24337895]
[1731207133105,0.25,204.5,204.45,6.51788999]
[1731207133408,0.25,204.5,204.45,25.24337895]
[1731207133591,0.25,204.5,204.46,25.24337895]
[1731207133792,0.25,204.5,204.47,25.24337895]
[1731207134390,0.25,204.5,204.41,70.0]
[1731207134391,0.25,204.5,204.46,25.24337895]
[1731207134592,0.25,204.5,204.47,25.24337895]
[1731207134988,0.25,204.5,204.49,25.24337895]
[1731207135209,0.25,204.5,204.49,45.24337895]
[1731207135400,0.25,204.5,204.49,25.24337895]
[1731207135707,0.25,204.5,204.49,27.02344555]
[1731207136006,0.25,204.5,204.49,122.2668245]
[1731207136200,0.25,204.5,204.49,115.24337895]
[1731207136403,0.25,204.5,204.49,122.54849117]
[1731207136798,0.25,204.5,204.49,122.64849117]
[1731207137096,0.1246,204.5,204.49,152.08849117]
[1731207137298,0.19,204.6,204.56,70.0]
[1731207137493,0.19,204.6,204.57,7.30511222]
[1731207137989,0.19,204.6,204.59,70.0]
[1731207138197,0.19,204.6,204.57,7.30511222]
[1731207138907,0.19,204.6,204.56,70.0]
[1731207139101,25.24337895,204.59,204.52,95.24337895]
[1731207139289,25.24337895,204.59,204.52,25.24337895]
[1731207140912,0.19,204.6,204.54,25.24337895]
[1731207141408,0.19,204.6,204.55,25.24337895]
[1731207142215,0.19,204.6,204.55,32.35419172]
[1731207142396,0.19,204.6,204.55,25.24337895]
[1731207142886,0.19,204.6,204.56,7.11081277]
[1731207143089,0.19,204.6,204.55,25.24337895]
[1731207143496,0.19,204.6,204.59,120.14737895]
[1731207143695,0.19,204.6,204.59,127.49652505]
[1731207144906,0.19,204.6,204.59,120.14737895]
[1731207145213,0.19,204.6,204.59,95.24337895]
[1731207145417,0.19,204.6,204.57,33.2652603]
[1731207146401,0.19,204.6,204.57,8.02188135]
[1731207146900,0.19,204.6,204.57,33.2652603]
[1731207147305,0.19,204.6,204.59,25.24337895]
[1731207147621,0.19,204.6,204.59,110.56133028]
[1731207148492,0.19,204.6,204.59,25.24337895]
[1731207148694,0.19,204.6,204.55,7.47820635]
[1731207148897,0.19,204.6,204.54,25.24337895]
[1731207150308,0.19,204.6,204.55,32.70714085]
[1731207151109,0.19,204.6,204.55,7.4637619]
[1731207151616,0.19,204.6,204.58,25.24337895]
[1731207151796,0.19,204.6,204.58,7.4637619]
[1731207152200,25.24337895,204.59,204.54,4.904]
[1731207152505,25.24337895,204.55,204.46,7.04884524]
[1731207152709,25.24337895,204.53,204.46,7.04884524]
[1731207153019,25.24337895,204.55,204.48,25.24337895]
[1731207153199,25.24337895,204.55,204.49,4.904]
[1731207154197,25.24337895,204.55,204.5,4.904]
[1731207154999,25.24337895,204.56,204.5,4.904]
[1731207155413,25.24337895,204.57,204.5,4.904]
[1731207155616,25.24337895,204.57,204.5,30.14737895]
[1731207155817,25.24337895,204.57,204.5,4.904]
[1731207156194,25.24337895,204.58,204.51,25.24337895]
[1731207157515,25.24337895,204.55,204.48,30.14737895]
[1731207157901,25.24337895,204.56,204.48,30.14737895]
[1731207158220,25.24337895,204.56,204.49,7.04884524]
[1731207158416,25.24337895,204.57,204.49,32.29222419]
[1731207159501,25.24337895,204.56,204.49,25.24337895]
[1731207160322,25.24337895,204.56,204.48,30.14737895]
[1731207160701,25.24337895,204.54,204.48,4.904]
[1731207160901,25.24337895,204.53,204.48,4.904]
[1731207161096,0.19,204.6,204.48,4.904]
[1731207161311,25.24337895,204.55,204.48,30.14737895]
[1731207161497,25.24337895,204.55,204.48,4.904]
[1731207161706,25.24337895,204.54,204.48,4.904]
[1731207162106,25.24337895,204.54,204.47,7.04884524]
[1731207162309,25.24337895,204.55,204.47,32.29222419]
[1731207162526,25.24337895,204.53,204.47,7.04884524]
[1731207162823,25.24337895,204.49,204.41,95.24337895]
[1731207163023,25.24337895,204.49,204.42,25.24337895]
[1731207163206,25.24337895,204.47,204.4,31.10749411]
[1731207163399,25.24337895,204.46,204.4,5.86411516]
[1731207163596,25.24337895,204.45,204.38,25.24337895]
[1731207164016,25.24337895,204.44,204.37,25.24337895]
[1731207164399,25.24337895,204.44,204.35,75.86411516]
[1731207164599,25.24337895,204.45,204.38,25.24337895]
[1731207166415,25.24337895,204.45,204.37,25.24337895]
[1731207167311,25.24337895,204.41,204.34,25.24337895]
[1731207168126,25.24337895,204.42,204.34,25.24337895]
[1731207168310,22.0538,204.48,204.39,25.24337895]
[1731207168502,47.29717895,204.48,204.41,25.24337895]
[1731207170999,22.0538,204.48,204.42,25.24337895]
[1731207171206,22.0538,204.48,204.43,25.24337895]
[1731207171407,41.17167895,204.53,204.46,25.24337895]
[1731207171607,41.17167895,204.53,204.4,25.24337895]
[1731207171813,25.24337895,204.5,204.43,25.24337895]
[1731207172112,25.24337895,204.49,204.42,25.24337895]
[1731207172320,25.24337895,204.5,204.43,25.24337895]
[1731207174123,25.24337895,204.52,204.45,25.24337895]
[1731207174829,15.9283,204.53,204.41,4.904]
[1731207174830,15.9283,204.53,204.47,25.24337895]
[1731207176009,15.9283,204.53,204.49,25.24337895]
[1731207176211,16.1524,204.58,204.53,4.904]
[1731207176428,16.1524,204.58,204.53,30.14737895]
[1731207176633,16.1524,204.58,204.53,4.904]
[1731207177334,25.24337895,204.56,204.49,25.24337895]
[1731207177522,25.24337895,204.55,204.47,25.24337895]
[1731207178115,25.24337895,204.54,204.46,25.24337895]
[1731207178435,25.24337895,204.53,204.45,30.14737895]
[1731207179431,25.24337895,204.51,204.45,4.904]
[1731207179608,31.40527895,204.52,204.45,30.14737895]
[1731207180239,6.1619,204.52,204.48,25.24337895]
[1731207180424,6.1619,204.52,204.49,25.24337895]
[1731207180936,6.1619,204.52,204.46,25.24337895]
[1731207182237,6.1619,204.52,204.47,4.904]
[1731207182435,31.40527895,204.52,204.47,4.904]
[1731207183017,31.40527895,204.52,204.45,4.904]
[1731207184336,25.24337895,204.53,204.46,25.24337895]
[1731207184539,25.24337895,204.55,204.47,25.24337895]
[1731207186219,25.24337895,204.53,204.45,30.14737895]
[1731207187018,25.24337895,204.53,204.45,25.24337895]
[1731207187420,0.19,204.6,204.55,70.0]
[1731207187617,15.75744854,204.65,204.58,15.75744854]
[1731207187836,15.75744854,204.64,204.57,15.75744854]
[1731207188222,15.75744854,204.63,204.56,22.80629378]
[1731207188422,15.75744854,204.64,204.57,15.75744854]
[1731207188629,15.75744854,204.66,204.6,70.0]
[1731207188828,15.75744854,204.65,204.58,15.75744854]
[1731207189325,25.19412,204.65,204.58,25.19412]
[1731207190324,23.1398,204.78,204.6,95.19412]
[1731207190542,25.19412,204.71,204.64,25.19412]
[1731207190843,25.19412,204.71,204.6,29.44]
[1731207190844,25.19412,204.67,204.6,25.19412]
[1731207191019,25.19412,204.67,204.6,25.29412]
[1731207191224,25.19412,204.68,204.62,70.0]
[1731207191828,25.19412,204.66,204.59,95.19412]
[1731207192234,25.19412,204.65,204.57,25.19412]
[1731207193253,25.19412,204.64,204.57,25.19412]
[1731207194234,25.19412,204.64,204.56,25.19412]
[1731207194548,25.19412,204.7,204.55,70.0]
[1731207194549,25.19412,204.59,204.55,70.0]
[1731207194933,25.19412,204.61,204.55,70.0]
[1731207196048,25.19412,204.62,204.55,95.19412]
[1731207196345,25.19412,204.64,204.58,20.0]
[1731207196646,25.19412,204.64,204.57,25.19412]
[1731207196824,25.19412,204.66,204.58,25.19412]
[1731207197144,25.19412,204.65,204.58,70.0]
[1731207198669,25.19412,204.68,204.61,25.19412]
[1731207198826,25.19412,204.69,204.61,25.19412]
[1731207199027,25.19412,204.68,204.6,25.19412]
[1731207199231,25.19412,204.68,204.61,25.19412]
[1731207200043,25.19412,204.68,204.59,95.19412]
[1731207200351,25.19412,204.66,204.59,70.0]
[1731207201051,6.6076,204.72,204.58,25.19412]
[1731207201052,25.19412,204.65,204.58,25.19412]
[1731207201225,25.19412,204.66,204.58,25.19412]
[1731207201423,25.19412,204.66,204.59,25.19412]
[1731207201843,25.19412,204.67,204.6,25.19412]
[1731207202727,25.19412,204.68,204.6,25.19412]
[1731207202933,25.19412,204.67,204.6,25.19412]
[1731207203629,25.19412,204.67,204.59,25.19412]
[1731207204557,25.19412,204.67,204.6,25.19412]
[1731207205248,25.19412,204.69,204.61,25.19412]
[1731207207150,25.19412,204.69,204.63,25.19412]
[1731207207457,25.19412,204.69,204.59,70.0]
[1731207207751,25.19412,204.69,204.62,25.19412]
[1731207208163,6.6076,204.72,204.63,25.19412]
[1731207208344,25.19412,204.71,204.63,25.19412]
[1731207208540,25.19412,204.67,204.56,70.1]
[1731207208743,25.19412,204.68,204.61,25.19412]
[1731207208949,25.19412,204.69,204.61,25.19412]
[1731207209156,25.19412,204.68,204.61,25.19412]
[1731207209345,15.74300166,204.68,204.6,15.74300166]
[1731207209658,15.74300166,204.67,204.6,15.74300166]
[1731207210039,6.6076,204.72,204.59,15.74300166]
[1731207210040,15.74300166,204.66,204.59,15.74300166]
[1731207211341,32.29220166,204.67,204.59,15.74300166]
[1731207211647,16.5492,204.67,204.61,15.74300166]
[1731207212647,16.5492,204.67,204.56,75.33107294]
[1731207212648,21.62536639,204.79,204.65,15.74300166]
[1731207212843,15.74300166,204.73,204.65,15.74300166]
[1731207213054,15.74300166,204.73,204.63,15.74300166]
[1731207214140,15.74300166,204.73,204.6,70.0]
[1731207214353,15.74300166,204.71,204.63,15.74300166]
[1731207215858,15.74300166,204.71,204.61,15.74300166]
[1731207216243,15.74300166,204.69,204.61,15.74300166]
[1731207217273,22.38160166,204.69,204.59,22.09419418]
[1731207217444,15.74300166,204.67,204.59,15.74300166]
[1731207217644,15.74300166,204.65,204.57,15.74300166]
[1731207219261,22.5116,204.69,204.57,15.74300166]
[1731207219454,22.5116,204.69,204.62,15.74300166]
[1731207219763,22.5116,204.75,204.6,15.74300166]
[1731207219968,15.74300166,204.69,204.6,15.74300166]
[1731207221468,15.74300166,204.71,204.6,15.74300166]
[1731207221672,15.74300166,204.69,204.6,15.74300166]
[1731207226364,15.74300166,204.67,204.58,15.74300166]
[1731207227153,15.74300166,204.67,204.58,85.74300166]
[1731207227972,15.74300166,204.65,204.58,70.0]
[1731207228354,15.74300166,204.67,204.58,70.0]
[1731207228763,14.74300166,204.67,204.58,70.0]
[1731207229151,15.74300166,204.63,204.56,1.862144]
[1731207229354,15.74300166,204.61,204.56,1.862144]
[1731207231193,15.74300166,204.57,204.56,1.862144]
[1731207232286,15.74300166,204.72,204.6,0.1]
[1731207232481,15.74300166,204.68,204.6,14.06197927]
[1731207232676,15.74300166,204.7,204.62,15.74300166]
[1731207233363,15.74300166,204.72,204.62,29.80498093]
[1731207233560,22.6116,204.78,204.62,29.80498093]
[1731207233561,15.74300166,204.7,204.62,29.80498093]
[1731207233972,15.74300166,204.72,204.62,99.80498093]
[1731207235467,25.18058579,204.71,204.63,25.18058579]
[1731207235680,25.18058579,204.71,204.62,84.06197927]
[1731207235876,25.18058579,204.71,204.62,14.06197927]
[1731207237870,3.6462568,204.84,204.62,14.06197927]
[1731207237871,6.0179,204.83,204.65,25.18058579]
[1731207238072,25.18058579,204.76,204.65,33.26924716]
[1731207238384,25.18058579,204.74,204.65,33.26924716]
[1731207238598,25.18058579,204.72,204.65,8.08866137]
[1731207239378,25.18058579,204.75,204.66,25.18058579]
[1731207240182,25.18058579,204.73,204.65,8.08866137]
[1731207240378,25.18058579,204.71,204.62,31.15390369]
[1731207240668,31.19848579,204.71,204.62,31.15390369]
[1731207241765,25.18058579,204.69,204.62,31.15390369]
[1731207242477,25.18058579,204.65,204.59,8.08866137]
[1731207242678,25.18058579,204.63,204.56,1.862144]
[1731207243284,40.68168579,204.61,204.56,1.862144]
[1731207243792,25.18058579,204.6,204.56,1.862144]
[1731207244175,31.19848579,204.6,204.56,1.862144]
[1731207244493,25.18058579,204.58,204.56,1.862144]
[1731207245093,31.19848579,204.6,204.56,1.862144]
[1731207246481,25.18058579,204.59,204.56,1.862144]
[1731207247389,15.5011,204.61,204.57,25.18058579]
[1731207247579,25.18058579,204.64,204.57,25.18058579]
[1731207247889,25.18058579,204.63,204.56,1.862144]
[1731207248193,25.18058579,204.61,204.56,1.862144]
[1731207248588,25.18058579,204.6,204.56,1.862144]
[1731207250197,26.70595913,204.66,204.56,27.04272979]
[1731207250198,5.08695913,204.66,204.56,27.04272979]
[1731207250502,25.18058579,204.66,204.59,25.18058579]
[1731207250699,25.18058579,204.64,204.57,25.18058579]
[1731207250993,30.36584141,204.7,204.56,1.862144]
[1731207250994,25.18058579,204.58,204.56,1.862144]
[1731207251798,46.69958579,204.61,204.56,1.862144]
[1731207251991,21.519,204.61,204.56,27.04272979]
[1731207252181,25.18058579,204.64,204.56,27.04272979]
[1731207253099,21.519,204.66,204.58,25.18058579]
[1731207253100,46.69958579,204.66,204.58,25.18058579]
[1731207253291,25.18058579,204.65,204.58,25.18058579]
[1731207254289,25.18058579,204.65,204.57,25.18058579]
[1731207254495,30.26584141,204.7,204.56,1.862144]
[1731207254496,5.08525562,204.7,204.64,95.18058579]
[1731207254699,25.18058579,204.77,204.69,25.18058579]
[1731207255896,25.18058579,204.77,204.67,25.18058579]
[1731207256202,25.18058579,204.75,204.67,25.18058579]
[1731207256778,25.18058579,204.73,204.65,25.18058579]
[1731207257396,25.18058579,204.75,204.67,25.18058579]
[1731207257590,25.18058579,204.73,204.65,25.18058579]
[1731207258589,25.18058579,204.73,204.65,33.3505515]
[1731207258783,25.18058579,204.75,204.67,25.18058579]
[1731207259400,25.18058579,204.79,204.71,25.18058579]
[1731207259797,25.18058579,204.77,204.69,25.18058579]
[1731207259995,25.18058579,204.75,204.67,25.18058579]
[1731207261394,15.73344267,204.75,204.67,15.73344267]
[1731207262986,15.73344267,204.77,204.69,15.73344267]
[1731207263593,15.73344267,204.75,204.67,15.73344267]
[1731207264289,15.73344267,204.77,204.69,15.73344267]
[1731207264503,5.18136059,204.86,204.72,15.73344267]
[1731207264690,15.73344267,204.81,204.72,15.73344267]
[1731207265607,15.73344267,204.8,204.72,23.34729727]
[1731207265796,15.73344267,204.79,204.72,7.6138546]
[1731207265991,15.73344267,204.79,204.71,15.73344267]
[1731207266397,15.1078,204.84,204.67,4.879]
[1731207266398,15.73344267,204.77,204.69,15.73344267]
[1731207266601,15.73344267,204.75,204.67,15.73344267]
[1731207266789,15.73344267,204.73,204.65,15.73344267]
[1731207266992,15.73344267,204.71,204.63,15.73344267]
[1731207267194,15.73344267,204.72,204.64,15.73344267]
[1731207267400,15.73344267,204.72,204.65,15.73344267]
[1731207267599,15.73344267,204.72,204.64,15.73344267]
[1731207268996,15.73344267,204.71,204.63,15.73344267]
[1731207269204,15.73344267,204.72,204.64,15.73344267]
[1731207270005,15.73344267,204.71,204.63,15.73344267]
[1731207270989,15.73344267,204.71,204.61,4.879]
[1731207270990,15.73344267,204.72,204.64,15.73344267]
[1731207272595,15.73344267,204.74,204.66,15.73344267]
[1731207273214,15.73344267,204.74,204.66,23.34729727]
[1731207274226,6.5004,204.81,204.66,23.34729727]
[1731207274417,15.73344267,204.75,204.66,23.34729727]
[1731207274615,15.73344267,204.75,204.68,15.73344267]
[1731207275817,15.73344267,204.75,204.66,15.73344267]
[1731207277001,15.73344267,204.75,204.68,15.73344267]
[1731207277612,6.5004,204.81,204.68,15.73344267]
[1731207277827,15.73344267,204.76,204.68,15.73344267]
[1731207281020,6.5004,204.81,204.64,3.69158143]
[1731207281021,15.73344267,204.74,204.66,20.61244267]
[1731207282305,15.73344267,204.76,204.68,15.73344267]
[1731207282816,15.73344267,204.74,204.66,28.22629727]
[1731207284808,15.73344267,204.71,204.64,3.69158143]
[1731207285018,15.73344267,204.71,204.63,20.61244267]
[1731207285516,15.73344267,204.67,204.59,15.73344267]
[1731207285713,20.82011596,204.8,204.67,70.0]
[1731207285904,15.73344267,204.8,204.72,15.73344267]
[1731207286615,15.73344267,204.76,204.68,20.61244267]
[1731207286818,15.73344267,204.78,204.7,15.73344267]
[1731207287900,15.73344267,204.78,204.66,4.879]
[1731207287901,15.73344267,204.76,204.66,3.66586033]
[1731207288102,15.73344267,204.74,204.66,15.73344267]
[1731207289115,15.73344267,204.72,204.64,20.61244267]
[1731207290724,15.73344267,204.7,204.62,20.61244267]
[1731207291424,15.73344267,204.72,204.64,15.73344267]
[1731207291641,15.73344267,204.72,204.65,15.73344267]
[1731207291929,15.73344267,204.72,204.64,15.73344267]
[1731207292298,15.73344267,204.71,204.63,15.73344267]
[1731207292497,15.73344267,204.68,204.61,20.61244267]
[1731207292712,15.73344267,204.66,204.54,12.17362635]
[1731207292912,15.73344267,204.66,204.52,70.0]
[1731207292913,15.73344267,204.66,204.58,15.73344267]
[1731207293115,15.73344267,204.65,204.58,15.73344267]
[1731207294022,15.73344267,204.66,204.59,15.73344267]
[1731207295024,15.73344267,204.65,204.59,15.73344267]
[1731207295231,15.73344267,204.65,204.58,15.73344267]
[1731207295430,25.67942545,204.71,204.57,4.879]
[1731207295431,0.1,204.68,204.57,20.61244267]
[1731207295621,15.73344267,204.64,204.57,20.61244267]
[1731207295810,15.73344267,204.65,204.58,15.73344267]
[1731207296008,6.2509,204.58,204.56,1.862144]
[1731207296208,15.73344267,204.57,204.56,1.862144]
[1731207298514,15.83344267,204.57,204.56,1.862144]
[1731207302127,0.1,204.52,204.42,15.73344267]
[1731207302433,15.73344267,204.49,204.42,15.73344267]
[1731207302735,15.73344267,204.48,204.41,15.73344267]
[1731207303309,15.73344267,204.49,204.42,15.73344267]
[1731207303743,50.0,204.5,204.47,15.73344267]
[1731207304217,50.0,204.5,204.46,15.73344267]
[1731207304634,50.0,204.5,204.45,15.73344267]
[1731207304831,50.0,204.5,204.44,15.73344267]
[1731207306013,65.73344267,204.5,204.43,15.73344267]
[1731207306619,50.0,204.5,204.44,15.73344267]
[1731207307209,50.0,204.5,204.47,15.73344267]
[1731207307415,50.0,204.5,204.45,15.73344267]
[1731207308732,50.0,204.5,204.46,15.73344267]
[1731207308922,50.0,204.5,204.49,15.73344267]
[1731207310224,50.0,204.5,204.49,20.61244267]
[1731207311820,50.0,204.5,204.47,15.73344267]
[1731207312513,50.0,204.5,204.46,15.73344267]
[1731207313023,50.0,204.5,204.45,15.73344267]
[1731207313220,50.0,204.5,204.49,15.73344267]
[1731207315124,50.0,204.5,204.48,15.73344267]
[1731207319840,50.0,204.5,204.49,15.73344267]
[1731207320939,50.0,204.5,204.47,15.73344267]
[1731207321734,50.0,204.5,204.46,15.73344267]
[1731207321928,50.0,204.5,204.39,3.63645395]
[1731207322133,15.73344267,204.48,204.41,15.73344267]
[1731207322438,50.0,204.5,204.46,15.73344267]
[1731207323727,65.73344267,204.5,204.44,15.73344267]
[1731207323934,50.0,204.5,204.46,15.73344267]
[1731207325530,50.0,204.5,204.41,4.879]
[1731207325531,50.0,204.5,204.45,15.73344267]
[1731207327321,65.73344267,204.5,204.43,15.73344267]
[1731207327731,50.0,204.5,204.44,15.73344267]
[1731207328344,65.73344267,204.5,204.43,15.73344267]
[1731207329038,15.73344267,204.49,204.41,15.73344267]
[1731207329337,15.73344267,204.47,204.39,15.73344267]
[1731207329719,15.73344267,204.47,204.4,15.73344267]
[1731207330137,15.73344267,204.48,204.4,15.73344267]
[1731207330321,15.73344267,204.48,204.41,15.73344267]
[1731207331416,6.1966,204.47,204.41,15.73344267]
[1731207331619,15.73344267,204.42,204.34,15.73344267]
[1731207331823,15.73344267,204.43,204.36,15.73344267]
[1731207332241,15.73344267,204.43,204.35,15.73344267]
[1731207332449,15.73344267,204.43,204.36,15.73344267]
[1731207332740,6.3966,204.47,204.3,19.36526011]
[1731207332741,37.82524267,204.45,204.37,15.73344267]
[1731207333735,15.73344267,204.43,204.35,15.73344267]
[1731207334642,15.73344267,204.43,204.3,19.36526011]
[1731207334643,15.73344267,204.43,204.37,15.73344267]
[1731207334823,37.82524267,204.45,204.37,15.73344267]
[1731207335750,15.73344267,204.44,204.36,15.73344267]
[1731207336131,37.82524267,204.45,204.38,15.73344267]
[1731207336640,22.0918,204.45,204.4,15.73344267]
[1731207336949,22.0918,204.45,204.39,15.73344267]
[1731207337248,37.82524267,204.45,204.38,15.73344267]
[1731207338130,22.0918,204.45,204.39,15.73344267]
[1731207338526,22.0918,204.45,204.31,4.879]
[1731207338527,22.0918,204.45,204.41,15.73344267]
[1731207338841,22.0918,204.45,204.42,15.73344267]
[1731207339041,22.0918,204.45,204.4,15.73344267]
[1731207340532,37.82524267,204.45,204.36,15.73344267]
[1731207341338,22.0918,204.45,204.32,0.1]
[1731207341538,22.0918,204.45,204.42,15.73344267]
[1731207342235,22.0918,204.45,204.4,15.73344267]
[1731207342855,22.0918,204.45,204.36,4.879]
[1731207342856,50.0,204.5,204.44,15.73344267]
[1731207343029,50.0,204.5,204.49,15.73344267]
[1731207343828,50.0,204.5,204.48,15.73344267]
[1731207344246,50.0,204.5,204.45,4.879]
[1731207344247,50.0,204.5,204.49,15.73344267]
[1731207344429,28.10796672,204.5,204.49,31.46688534]
[1731207344634,6.5271,204.71,204.54,4.879]
[1731207344947,15.73344267,204.68,204.6,15.73344267]
[1731207345346,15.73344267,204.67,204.59,15.73344267]
[1731207345554,15.83344267,204.67,204.59,15.73344267]
[1731207346150,15.83344267,204.67,204.58,15.73344267]
[1731207346338,15.83344267,204.67,204.59,15.73344267]
[1731207346951,15.73344267,204.67,204.59,15.73344267]
[1731207347340,15.73344267,204.66,204.59,15.73344267]
[1731207348148,15.73344267,204.66,204.5,15.73344267]
[1731207348149,6.5271,204.71,204.62,15.73344267]
[1731207348336,15.73344267,204.7,204.63,15.73344267]
[1731207348832,22.26054267,204.71,204.64,15.73344267]
[1731207350144,15.73344267,204.7,204.62,15.73344267]
[1731207350969,65.73344267,204.7,204.62,15.73344267]
[1731207351257,50.0,204.7,204.63,15.73344267]
[1731207352063,50.0,204.7,204.67,15.73344267]
[1731207352235,50.0,204.7,204.6,15.73344267]
[1731207352236,40.21143346,204.7,204.69,15.73344267]
[1731207352442,11.56569553,204.7,204.69,15.73344267]
[1731207354754,11.56569553,204.7,204.66,4.879]
[1731207354953,11.56569553,204.7,204.65,15.73344267]
[1731207355163,11.56569553,204.7,204.66,15.73344267]
[1731207355534,11.56569553,204.7,204.65,15.73344267]
[1731207355835,11.56569553,204.7,204.66,4.879]
[1731207356859,15.73344267,204.67,204.62,3.76462233]
[1731207357160,15.73344267,204.66,204.59,15.73344267]
[1731207357336,15.73344267,204.65,204.59,15.73344267]
[1731207357539,15.73344267,204.67,204.6,15.73344267]
[1731207357747,15.73344267,204.65,204.58,15.73344267]
[1731207357939,15.73344267,204.64,204.57,25.6493139]
[1731207358264,15.73344267,204.64,204.57,19.5206139]
[1731207358561,15.73344267,204.63,204.57,3.78717123]
[1731207358742,15.73344267,204.63,204.56,15.73344267]
[1731207359150,15.73344267,204.64,204.57,15.73344267]
[1731207359742,15.73344267,204.62,204.56,15.73344267]
[1731207359943,15.73344267,204.62,204.55,15.73344267]
[1731207360652,15.73344267,204.6,204.53,15.73344267]
[1731207361044,15.73344267,204.59,204.52,24.27013147]
[1731207361374,15.73344267,204.58,204.52,8.5366888]
[1731207362042,15.73344267,204.57,204.52,8.5366888]
[1731207362269,15.73344267,204.56,204.51,4.879]
[1731207362439,15.73344267,204.54,204.51,4.879]
[1731207362752,15.73344267,204.52,204.44,15.73344267]
[1731207362951,15.73344267,204.5,204.43,19.50155272]
[1731207363149,15.73344267,204.49,204.43,3.76811005]
[1731207363342,15.73344267,204.48,204.4,15.73344267]
[1731207363845,15.2051,204.57,204.38,9.25769896]
[1731207363846,15.73344267,204.46,204.39,15.73344267]
[1731207364378,15.73344267,204.47,204.4,15.73344267]
[1731207364553,15.73344267,204.48,204.41,15.73344267]
[1731207364861,15.73344267,204.47,204.4,15.73344267]
[1731207365085,15.73344267,204.48,204.41,15.73344267]
[1731207365248,15.73344267,204.47,204.4,15.73344267]
[1731207366564,15.73344267,204.45,204.38,8.5682762]
[1731207366747,15.73344267,204.46,204.38,20.61244267]